[Event "DVM U14 2021"]
[Site "Willingen"]
[Date "2022.08.16"]
[Round "7"]
[White "Kommessin, Felix"]
[Black "Menne, Lukas"]
[Result "1-0"]
[ECO "B01"]
[WhiteElo "1536"]
[BlackElo "1190"]
[Annotator "NA RC"]
[PlyCount "77"]
[EventDate "2022.08.12"]
[EventType "team-tourn"]
[EventRounds "7"]
[EventCountry "GER"]
[SourceTitle "playchess.com"]
[Source "ChessBase"]
[SourceQuality "1"]
[TimeControl "40/5400+30:1800+30"]

1. e4 {[%emt 0:00:03]} d5 {[%emt 0:00:06]} 2. exd5 {[%emt 0:00:07]} Qxd5 {[%emt 0:00:07]} 3. Nc3 {[%emt 0:00:06]} Qa5 {[%emt 0:00:08]} 4. Nf3 {[%emt 0:01:06]} c6 {[%emt 0:00:09]} 5. Be2 {[%emt 0:00:07]} Nf6 {[%emt 0:00:12]} 6. O-O {[%emt 0:00:26]} Bf5 {[%emt 0:00:25]} 7. b4 {[%emt 0:01:32]} Qc7 {[%emt 0:02:45]} 8. b5 {[%emt 0:17:56]} e6 {[%emt 0:02:04]} 9. a4 {[%emt 0:13:34]} c5 {[%emt 0:07:18]} 10. d3 {[%emt 0:09:05]} Bd6 {[%emt 0:02:20]} 11. h3 {[%emt 0:04:15]} Nbd7 {[%emt 0:04:27]} 12. Be3 {[%emt 0:08:52]} O-O {[%emt 0:02:54]} 13. Qd2 {[%emt 0:05:40]} Ne5 {[%emt 0:03:46]} 14. a5 {[%emt 0:06:23]} Nxf3+ {[%emt 0:03:31]} 15. Bxf3 {[%emt 0:02:40]} Rab8 {[%emt 0:08:03]} 16. Rfe1 {[%emt 0:09:15]} Rfd8 {[%emt 0:05:14]} 17. b6 {[%emt 0:02:39]} axb6 {[%emt 0:01:32]} 18. Nb5 {[%emt 0:00:09]} Qd7 {[%emt 0:06:16]} 19. Nxd6 {[%emt 0:00:08]} Qxd6 {[%emt 0:00:15]} 20. Bf4 {[%emt 0:00:07]} Qf8 {[%emt 0:02:36]} 21. Bxb8 {[%emt 0:00:13]} Rxb8 {[%emt 0:00:03]} 22. axb6 {[%emt 0:00:08]} Nd7 {[%emt 0:01:12]} 23. Reb1 {[%emt 0:04:28]} Ne5 {[%emt 0:01:35]} 24. Qf4 {[%emt 0:03:20]} f6 {[%emt 0:00:57]} 25. Be4 {[%emt 0:02:12]} g5 {[%emt 0:00:50]} 26. Qe3 {[%emt 0:00:08]} Bxe4 {[%emt 0:00:51]} 27. Qxe4 {[%emt 0:00:30]} Qg7 {[%emt 0:01:52]} 28. Qe1 {[%emt 0:05:48]} g4 {[%emt 0:00:35]} 29. hxg4 {[%emt 0:00:34]} Qxg4 {[%emt 0:00:21]} 30. Qe4 {[%emt 0:00:25]} Nf3+ {[%emt 0:00:42]} 31. Qxf3 {[%emt 0:00:11]} Qxf3 {[%emt 0:00:24]} 32. gxf3 {[%emt 0:00:05]} Kg7 {[%emt 0:00:15]} 33. Ra7 {[%emt 0:00:07]} h5 {[%emt 0:00:30]} 34. Rba1 {[%emt 0:00:06]} c4 {[%emt 0:00:38]} 35. dxc4 {[%emt 0:00:10]} Rd8 {[%emt 0:01:02]} 36. Rxb7+ {[%emt 0:00:07]} Kg6 {[%emt 0:00:09]} 37. Rc7 {[%emt 0:00:08]} h4 {[%emt 0:00:16]} 38. b7 {[%emt 0:00:08]} h3 {[%emt 0:00:12]} 39. Rc8 {[%emt 0:00:14]} 1-0

[Event "DVM U14 2021"]
[Site "Willingen"]
[Date "2022.08.16"]
[Round "7"]
[White "Strauss, Florian"]
[Black "Le, Dinh An"]
[Result "1/2-1/2"]
[ECO "C41"]
[WhiteElo "1527"]
[BlackElo "1470"]
[Annotator "NA RC"]
[PlyCount "57"]
[EventDate "2022.08.12"]
[EventType "team-tourn"]
[EventRounds "7"]
[EventCountry "GER"]
[SourceTitle "playchess.com"]
[Source "ChessBase"]
[SourceQuality "1"]
[TimeControl "40/5400+30:1800+30"]

1. e4 {[%emt 0:00:01]} d6 {[%emt 0:00:23]} 2. d4 {[%emt 0:00:16]} Nf6 {[%emt 0:00:14]} 3. Nc3 {[%emt 0:00:13]} Nbd7 {[%emt 0:00:23]} 4. Bc4 {[%emt 0:00:40]} e5 {[%emt 0:00:22]} 5. Nf3 {[%emt 0:00:55]} h6 {[%emt 0:00:32]} 6. dxe5 {[%emt 0:00:58]} dxe5 {[%emt 0:00:37]} 7. h3 {[%emt 0:01:49]} c6 {[%emt 0:01:12]} 8. a4 {[%emt 0:00:41]} a5 {[%emt 0:00:00]} 9. Be3 {[%emt 0:01:08]} Qc7 {[%emt 0:00:44]} 10. Qd3 {[%emt 0:01:13]} Nc5 {[%emt 0:00:45]} 11. Bxc5 {[%emt 0:00:41]} Bxc5 {[%emt 0:00:39]} 12. Ke2 {[%emt 0:01:14]} O-O {[%emt 0:01:45]} 13. Qd2 {[%emt 0:02:54]} Rd8 {[%emt 0:04:51]} 14. Qc1 {[%emt 0:01:18]} Bb4 {[%emt 0:00:43]} 15. g4 {[%emt 0:01:07]} Bxc3 {[%emt 0:01:33]} 16. bxc3 {[%emt 0:00:34]} Nxe4 {[%emt 0:00:41]} 17. Qe3 {[%emt 0:00:34]} Nd6 {[%emt 0:10:37]} 18. Bb3 {[%emt 0:01:22]} Re8 {[%emt 0:01:31]} 19. g5 {[%emt 0:01:40]} Nf5 {[%emt 0:03:31]} 20. Qc1 {[%emt 0:00:59]} e4 {[%emt 0:03:12]} 21. Nd4 {[%emt 0:00:43]} Nxd4+ {[%emt 0:08:06]} 22. cxd4 {[%emt 0:00:10]} e3 {[%emt 0:01:02]} 23. gxh6 {[%emt 0:01:05]} Qf4 {[%emt 0:00:45]} 24. fxe3 {[%emt 0:02:24]} Qxh6 {[%emt 0:00:17]} 25. Rf1 {[%emt 0:03:19]} Be6 {[%emt 0:01:24]} 26. Bxe6 {[%emt 0:03:27]} Rxe6 {[%emt 0:00:38]} 27. Rf3 {[%emt 0:01:51]} Rae8 {[%emt 0:01:25]} 28. Ra3 {[%emt 0:03:18]} Qg5 {[%emt 0:10:36]} 29. Qf1 {[%emt 0:01:57]} 1/2-1/2

[Event "DVM U14 2021"]
[Site "Willingen"]
[Date "2022.08.16"]
[Round "7"]
[White "Vecera, Fabio"]
[Black "Lipinsky, Pierre"]
[Result "1/2-1/2"]
[ECO "A09"]
[WhiteElo "1527"]
[BlackElo "1560"]
[Annotator "NA RC"]
[PlyCount "109"]
[EventDate "2022.08.12"]
[EventType "team-tourn"]
[EventRounds "7"]
[EventCountry "GER"]
[SourceTitle "playchess.com"]
[Source "ChessBase"]
[SourceQuality "1"]
[TimeControl "40/5400+30:1800+30"]

1. Nf3 {[%emt 0:00:01]} d5 {[%emt 0:00:00]} 2. c4 {[%emt 0:00:04]} d4 {[%emt 0:00:12]} 3. b4 {[%emt 0:00:10]} f6 {[%emt 0:00:17]} 4. Qb3 {[%emt 0:01:11]} e5 {[%emt 0:03:27]} 5. e3 {[%emt 0:06:45]} dxe3 {[%emt 0:00:18]} 6. dxe3 {[%emt 0:00:46]} Be6 {[%emt 0:01:22]} 7. Nc3 {[%emt 0:07:06]} Be7 {[%emt 0:04:28]} 8. Be2 {[%emt 0:01:11]} Nh6 {[%emt 0:01:23]} 9. O-O {[%emt 0:01:57]} O-O {[%emt 0:05:36]} 10. Rd1 {[%emt 0:04:25]} Qe8 {[%emt 0:02:13]} 11. Nd5 {[%emt 0:09:30]} Bxd5 {[%emt 0:00:56]} 12. cxd5 {[%emt 0:02:38]} Bd6 {[%emt 0:27:12]} 13. e4 {[%emt 0:06:32]} Nf7 {[%emt 0:02:39]} 14. Be3 {[%emt 0:05:16]} Qe7 {[%emt 0:01:50]} 15. a3 {[%emt 0:01:37]} Nd7 {[%emt 0:05:12]} 16. Rdc1 {[%emt 0:03:56]} Rfb8 {[%emt 0:05:36]} 17. h3 {[%emt 0:05:00]} Kh8 {[%emt 0:05:38]} 18. Rc2 {[%emt 0:03:19]} a5 {[%emt 0:09:22]} 19. Rb1 {[%emt 0:06:50]} axb4 {[%emt 0:00:17]} 20. axb4 {[%emt 0:03:38]} c5 {[%emt 0:08:11]} 21. b5 {[%emt 0:03:27]} b6 {[%emt 0:01:07]} 22. Nd2 {[%emt 0:02:42]} Bc7 {[%emt 0:00:59]} 23. Nc4 {[%emt 0:00:52]} Nd6 {[%emt 0:02:04]} 24. Nxd6 {[%emt 0:01:12]} Bxd6 {[%emt 0:02:04]} 25. Ra2 {[%emt 0:04:27]} Qd8 {[%emt 0:01:06]} 26. Rba1 {[%emt 0:02:34]} Qc8 {[%emt 0:02:23]} 27. Ra4 {[%emt 0:03:44]} Kg8 {[%emt 0:01:58]} 28. Bg4 {[%emt 0:01:03]} Rxa4 {[%emt 0:00:07]} 29. Rxa4 {[%emt 0:01:00]} Qc7 {[%emt 0:02:49]} 30. Qa2 {[%emt 0:01:59]} Nf8 {[%emt 0:01:05]} 31. Kf1 {[%emt 0:04:48]} Ng6 {[%emt 0:01:05]} 32. g3 {[%emt 0:00:16]} Kf8 {[%emt 0:00:27]} 33. Ke2 {[%emt 0:01:09]} Ne7 {[%emt 0:01:47]} 34. Kd3 {[%emt 0:01:14]} g6 {[%emt 0:00:56]} 35. Ra7 {[%emt 0:00:11]} Rb7 {[%emt 0:00:10]} 36. Ra8+ {[%emt 0:00:05]} Rb8 {[%emt 0:01:03]} 37. Bh6+ {[%emt 0:01:33]} Ke8 {[%emt 0:00:59]} 38. Qa7 {[%emt 0:02:36]} f5 {[%emt 0:00:39]} 39. Bf3 {[%emt 0:01:46]} fxe4+ {[%emt 0:00:14]} 40. Bxe4 {[%emt 0:01:20]} Rxa8 {[%emt 0:00:21]} 41. Qxa8+ {[%emt 0:30:03]} Qb8 {[%emt 0:01:28]} 42. Qxb8+ {[%emt 0:00:00]} Bxb8 {[%emt 0:06:40]} 43. Bg2 {[%emt 0:00:00]} Nf5 {[%emt 0:05:40]} 44. Bg5 {[%emt 0:00:00]} Nd6 {[%emt 0:00:13]} 45. Bf6 {[%emt 0:00:00]} Nxb5 {[%emt 0:01:33]} 46. d6 {[%emt 0:00:00]} Kd7 {[%emt 0:00:44]} 47. Bxe5 {[%emt 0:00:00]} Bxd6 {[%emt 0:04:35]} 48. Kc4 {[%emt 0:00:00]} Nc7 {[%emt 0:01:24]} 49. Bc3 {[%emt 0:00:00]} b5+ {[%emt 0:01:12]} 50. Kd3 {[%emt 0:00:00]} Ke6 {[%emt 0:05:25]} 51. f4 {[%emt 0:00:00]} Nd5 {[%emt 0:00:22]} 52. Bd2 {[%emt 0:00:00]} Nb6 {[%emt 0:00:45]} 53. g4 {[%emt 0:00:00]} c4+ {[%emt 0:00:42]} 54. Kd4 {[%emt 0:00:00]} b4 {[%emt 0:00:51]} 55. f5+ {[%emt 0:00:29]} 1/2-1/2

[Event "DVM U14 2021"]
[Site "Willingen"]
[Date "2022.08.16"]
[Round "7"]
[White "Stein, Theodor"]
[Black "Römer, Uri"]
[Result "1-0"]
[ECO "C45"]
[WhiteElo "1510"]
[BlackElo "1485"]
[Annotator "NA RC"]
[PlyCount "121"]
[EventDate "2022.08.12"]
[EventType "team-tourn"]
[EventRounds "7"]
[EventCountry "GER"]
[SourceTitle "playchess.com"]
[Source "ChessBase"]
[SourceQuality "1"]
[TimeControl "40/5400+30:1800+30"]

1. e4 {[%emt 0:00:05]} e5 {[%emt 0:00:00]} 2. Nf3 {[%emt 0:00:05]} Nc6 {[%emt 0:00:00]} 3. d4 {[%emt 0:00:11]} exd4 {[%emt 0:00:00]} 4. Nxd4 {[%emt 0:01:05]} Bc5 {[%emt 0:00:00]} 5. Be3 {[%emt 0:01:34]} Bxd4 {[%emt 0:00:00]} 6. Bxd4 {[%emt 0:00:27]} Nf6 {[%emt 0:00:13]} 7. Nc3 {[%emt 0:01:12]} d6 {[%emt 0:07:36]} 8. Be3 {[%emt 0:05:37]} Qe7 {[%emt 0:09:00]} 9. f3 {[%emt 0:04:21]} Be6 {[%emt 0:08:02]} 10. Qd2 {[%emt 0:02:47]} a6 {[%emt 0:04:10]} 11. O-O-O {[%emt 0:02:05]} O-O-O {[%emt 0:11:14]} 12. Qf2 {[%emt 0:06:25]} d5 {[%emt 0:02:59]} 13. Bc5 {[%emt 0:02:28]} Qe8 {[%emt 0:03:36]} 14. exd5 {[%emt 0:01:24]} Nxd5 {[%emt 0:05:02]} 15. Nxd5 {[%emt 0:01:11]} Rxd5 {[%emt 0:03:30]} 16. Bd3 {[%emt 0:02:54]} Ne5 {[%emt 0:04:40]} 17. Be4 {[%emt 0:02:29]} Rxd1+ {[%emt 0:00:06]} 18. Rxd1 {[%emt 0:03:51]} Qb5 {[%emt 0:03:45]} 19. Qd4 {[%emt 0:03:14]} f6 {[%emt 0:03:37]} 20. a4 {[%emt 0:06:03]} Qc4 {[%emt 0:12:42]} 21. Be7 {[%emt 0:03:05]} Qxd4 {[%emt 0:00:07]} 22. Rxd4 {[%emt 0:00:29]} Nc6 {[%emt 0:00:29]} 23. Bxc6 {[%emt 0:00:07]} bxc6 {[%emt 0:09:20]} 24. b3 {[%emt 0:02:05]} Re8 {[%emt 0:02:40]} 25. Bb4 {[%emt 0:01:12]} Bf5 {[%emt 0:02:08]} 26. Rf4 {[%emt 0:00:53]} Bg6 {[%emt 0:00:27]} 27. Kd2 {[%emt 0:05:28]} Rd8+ {[%emt 0:01:57]} 28. Kc3 {[%emt 0:00:50]} Re8 {[%emt 0:00:49]} 29. Kd2 {[%emt 0:00:22]} Rd8+ {[%emt 0:00:04]} 30. Kc3 {[%emt 0:00:06]} Re8 {[%emt 0:00:18]} 31. Rd4 {[%emt 0:01:31]} Re2 {[%emt 0:00:06]} 32. Rd2 {[%emt 0:03:54]} Re3+ {[%emt 0:00:41]} 33. Kd4 {[%emt 0:01:10]} Re8 {[%emt 0:02:21]} 34. Bc5 {[%emt 0:04:42]} Bf7 {[%emt 0:00:23]} 35. Kc3 {[%emt 0:04:19]} Re5 {[%emt 0:01:43]} 36. Bd4 {[%emt 0:03:56]} Rd5 {[%emt 0:00:32]} 37. Be3 {[%emt 0:07:19]} Re5 {[%emt 0:01:42]} 38. Bf4 {[%emt 0:01:16]} Rc5+ {[%emt 0:01:22]} 39. Kd4 {[%emt 0:02:54]} Rd5+ {[%emt 0:01:16]} 40. Kc3 {[%emt 0:07:41]} Rf5 {[%emt 0:00:46]} 41. Bg3 {[%emt 0:30:32]} Rd5 {[%emt 0:30:54]} 42. Re2 {[%emt 0:00:51]} Kd7 {[%emt 0:00:00]} 43. Rd2 {[%emt 0:00:00]} Kc8 {[%emt 0:00:00]} 44. Re2 {[%emt 0:00:00]} Kd7 {[%emt 0:00:00]} 45. Kb2 {[%emt 0:00:00]} Rd1 {[%emt 0:00:00]} 46. h3 {[%emt 0:00:00]} Rd5 {[%emt 0:00:00]} 47. Bf4 {[%emt 0:00:00]} g5 {[%emt 0:00:00]} 48. c4 {[%emt 0:00:00]} Rd3 {[%emt 0:00:00]} 49. Bd2 {[%emt 0:00:00]} Be6 {[%emt 0:00:00]} 50. Bc3 {[%emt 0:00:00]} f5 {[%emt 0:00:00]} 51. Kc2 {[%emt 0:00:00]} Rd6 {[%emt 0:00:00]} 52. Be5 {[%emt 0:00:00]} Bxc4 {[%emt 0:00:00]} 53. bxc4 {[%emt 0:00:00]} Re6 {[%emt 0:00:00]} 54. Kd3 {[%emt 0:00:00]} c5 {[%emt 0:00:39]} 55. Bb2 {[%emt 0:00:00]} Rb6 {[%emt 0:00:17]} 56. Bc3 {[%emt 0:00:00]} Rd6+ {[%emt 0:00:37]} 57. Kc2 {[%emt 0:00:00]} Kc6 {[%emt 0:00:14]} 58. Re5 {[%emt 0:00:00]} g4 {[%emt 0:00:21]} 59. Rxf5 {[%emt 0:00:00]} gxh3 {[%emt 0:00:07]} 60. gxh3 {[%emt 0:00:00]} Rh6 {[%emt 0:00:08]} 61. Rf6+ {[%emt 4:33:40]} 1-0

[Event "DVM U14 2021"]
[Site "Willingen"]
[Date "2022.08.16"]
[Round "7"]
[White "Wagner, Anton"]
[Black "Bolz, Jannis"]
[Result "1/2-1/2"]
[ECO "D93"]
[WhiteElo "1479"]
[BlackElo "1616"]
[Annotator "NA RC"]
[PlyCount "53"]
[EventDate "2022.08.12"]
[EventType "team-tourn"]
[EventRounds "7"]
[EventCountry "GER"]
[SourceTitle "playchess.com"]
[Source "ChessBase"]
[SourceQuality "1"]
[TimeControl "40/5400+30:1800+30"]

1. d4 {[%emt 0:00:02]} Nf6 {[%emt 0:00:06]} 2. c4 {[%emt 0:00:04]} g6 {[%emt 0:00:08]} 3. Nf3 {[%emt 0:00:07]} Bg7 {[%emt 0:00:16]} 4. Nc3 {[%emt 0:00:18]} d5 {[%emt 0:00:51]} 5. Bf4 {[%emt 0:03:30]} O-O {[%emt 0:00:38]} 6. e3 {[%emt 0:00:04]} c5 {[%emt 0:33:44]} 7. dxc5 {[%emt 0:26:01]} Qa5 {[%emt 0:09:55]} 8. Qb3 {[%emt 0:06:47]} Ne4 {[%emt 0:03:51]} 9. Rc1 {[%emt 0:04:46]} Nxc3 {[%emt 0:12:58]} 10. bxc3 {[%emt 0:02:00]} dxc4 {[%emt 0:18:36]} 11. Bxc4 {[%emt 0:01:16]} Qxc5 {[%emt 0:04:37]} 12. O-O {[%emt 0:03:54]} Nc6 {[%emt 0:01:35]} 13. Qb5 {[%emt 0:11:44]} Qxb5 {[%emt 0:04:53]} 14. Bxb5 {[%emt 0:00:40]} Na5 {[%emt 0:02:16]} 15. Rfd1 {[%emt 0:05:02]} Bg4 {[%emt 0:00:28]} 16. h3 {[%emt 0:07:26]} Bxf3 {[%emt 0:00:05]} 17. gxf3 {[%emt 0:00:01]} a6 {[%emt 0:00:27]} 18. Ba4 {[%emt 0:02:35]} b5 {[%emt 0:00:04]} 19. Bb3 {[%emt 0:00:07]} Nxb3 {[%emt 0:00:08]} 20. axb3 {[%emt 0:00:10]} Rac8 {[%emt 0:00:05]} 21. Rd3 {[%emt 0:04:43]} Rc6 {[%emt 0:00:25]} 22. c4 {[%emt 0:00:35]} bxc4 {[%emt 0:01:43]} 23. Rxc4 {[%emt 0:00:19]} Rb6 {[%emt 0:00:55]} 24. Ra4 {[%emt 0:04:42]} e5 {[%emt 0:00:33]} 25. Bg5 {[%emt 0:01:53]} f6 {[%emt 0:00:08]} 26. Bh4 {[%emt 0:00:04]} g5 {[%emt 0:00:46]} 27. Bg3 {[%emt 0:00:48]} 1/2-1/2

[Event "DVM U14 2021"]
[Site "Willingen"]
[Date "2022.08.16"]
[Round "7"]
[White "Freude, Paul"]
[Black "Gold, Jan Christian"]
[Result "1-0"]
[ECO "C08"]
[WhiteElo "1477"]
[BlackElo "1638"]
[Annotator "NA RC"]
[PlyCount "91"]
[EventDate "2022.08.12"]
[EventType "team-tourn"]
[EventRounds "7"]
[EventCountry "GER"]
[SourceTitle "playchess.com"]
[Source "ChessBase"]
[SourceQuality "1"]
[TimeControl "40/5400+30:1800+30"]

1. e4 {[%emt 0:00:01]} e6 {[%emt 0:00:00]} 2. d4 {[%emt 0:00:01]} d5 {[%emt 0:00:00]} 3. Nd2 {[%emt 0:00:03]} c5 {[%emt 0:00:00]} 4. exd5 {[%emt 0:00:03]} exd5 {[%emt 0:00:00]} 5. Ngf3 {[%emt 0:00:07]} a6 {[%emt 0:00:40]} 6. dxc5 {[%emt 0:00:03]} Bxc5 {[%emt 0:00:46]} 7. Nb3 {[%emt 0:00:09]} Bb6 {[%emt 0:02:12]} 8. h3 {[%emt 0:01:59]} Nc6 {[%emt 0:01:08]} 9. c3 {[%emt 0:00:43]} Bf5 {[%emt 0:01:23]} 10. Be2 {[%emt 0:00:24]} Nge7 {[%emt 0:00:49]} 11. O-O {[%emt 0:00:49]} O-O {[%emt 0:01:34]} 12. Bf4 {[%emt 0:00:47]} Ng6 {[%emt 0:00:34]} 13. Bh2 {[%emt 0:05:06]} Re8 {[%emt 0:01:34]} 14. Re1 {[%emt 0:06:05]} Nge5 {[%emt 0:03:46]} 15. Nfd4 {[%emt 0:05:01]} Be4 {[%emt 0:05:43]} 16. f3 {[%emt 0:00:56]} Bg6 {[%emt 0:03:23]} 17. Kh1 {[%emt 0:05:23]} Qf6 {[%emt 0:09:30]} 18. Nxc6 {[%emt 0:00:10]} bxc6 {[%emt 0:03:30]} 19. Bg1 {[%emt 0:05:03]} Bc7 {[%emt 0:07:57]} 20. Bh2 {[%emt 0:03:24]} Re7 {[%emt 0:02:11]} 21. Nc5 {[%emt 0:01:11]} a5 {[%emt 0:05:06]} 22. f4 {[%emt 0:02:09]} Nd7 {[%emt 0:00:39]} 23. Nxd7 {[%emt 0:00:02]} Rxd7 {[%emt 0:00:31]} 24. Bg4 {[%emt 0:07:53]} Rdd8 {[%emt 0:09:37]} 25. Qd2 {[%emt 0:10:25]} d4 {[%emt 0:04:19]} 26. Rac1 {[%emt 0:02:06]} d3 {[%emt 0:01:43]} 27. Bf3 {[%emt 0:05:39]} Rd7 {[%emt 0:01:06]} 28. Be4 {[%emt 0:06:45]} Rad8 {[%emt 0:03:23]} 29. g4 {[%emt 0:05:05]} Bxe4+ {[%emt 0:00:12]} 30. Rxe4 {[%emt 0:02:39]} Re7 {[%emt 0:01:06]} 31. Rce1 {[%emt 0:00:16]} Rxe4 {[%emt 0:00:05]} 32. Rxe4 {[%emt 0:00:09]} c5 {[%emt 0:00:44]} 33. Qxd3 {[%emt 0:00:03]} Qc6 {[%emt 0:01:08]} 34. Qf3 {[%emt 0:02:43]} c4 {[%emt 0:02:34]} 35. Re3 {[%emt 0:00:45]} Rd1+ {[%emt 0:00:40]} 36. Kg2 {[%emt 0:00:33]} Rd2+ {[%emt 0:01:14]} 37. Kg3 {[%emt 0:20:46]} Bxf4+ {[%emt 0:01:10]} 38. Qxf4 {[%emt 0:00:03]} Rg2+ {[%emt 0:00:11]} 39. Kh4 {[%emt 0:00:12]} h6 {[%emt 0:11:38]} 40. Kh5 {[%emt 0:01:08]} Qg6+ {[%emt 0:00:30]} 41. Kh4 {[%emt 0:30:05]} Qc6 {[%emt 0:30:08]} 42. Kh5 {[%emt 0:00:00]} g5 {[%emt 0:00:00]} 43. Qe4 {[%emt 0:00:00]} Qxe4 {[%emt 0:00:00]} 44. Rxe4 {[%emt 0:00:00]} Rxh2 {[%emt 0:00:00]} 45. Kxh6 {[%emt 0:00:00]} Rxb2 46. Re8# {[%emt 3:48:40]} 1-0

[Event "DVM U14 2021"]
[Site "Willingen"]
[Date "2022.08.16"]
[Round "7"]
[White "Lichtinger, Simon"]
[Black "Chugunov, Ivan"]
[Result "0-1"]
[ECO "A08"]
[WhiteElo "1473"]
[BlackElo "1630"]
[Annotator "NA RC"]
[PlyCount "66"]
[EventDate "2022.08.12"]
[EventType "team-tourn"]
[EventRounds "7"]
[EventCountry "GER"]
[SourceTitle "playchess.com"]
[Source "ChessBase"]
[SourceQuality "1"]
[TimeControl "40/5400+30:1800+30"]

1. Nf3 {[%emt 0:00:02]} Nf6 {[%emt 0:01:07]} 2. g3 {[%emt 0:00:04]} d5 {[%emt 0:00:42]} 3. Bg2 {[%emt 0:00:03]} g6 {[%emt 0:01:13]} 4. O-O {[%emt 0:00:08]} Bg7 {[%emt 0:00:41]} 5. d3 {[%emt 0:00:03]} O-O {[%emt 0:00:39]} 6. Nbd2 {[%emt 0:00:03]} c5 {[%emt 0:01:47]} 7. e4 {[%emt 0:00:24]} Nc6 {[%emt 0:01:09]} 8. Re1 {[%emt 0:02:27]} dxe4 {[%emt 0:08:47]} 9. dxe4 {[%emt 0:00:10]} e5 {[%emt 0:01:09]} 10. c3 {[%emt 0:04:18]} b6 {[%emt 0:05:29]} 11. Qe2 {[%emt 0:02:58]} Re8 {[%emt 0:05:09]} 12. Nf1 {[%emt 0:01:18]} a5 {[%emt 0:05:23]} 13. Rd1 {[%emt 0:06:23]} Qc7 {[%emt 0:06:56]} 14. Bg5 {[%emt 0:02:20]} Ba6 {[%emt 0:02:29]} 15. Qc2 {[%emt 0:00:12]} h6 {[%emt 0:07:20]} 16. Bxf6 {[%emt 0:00:07]} Bxf6 {[%emt 0:00:06]} 17. Ne3 {[%emt 0:00:55]} Bg7 {[%emt 0:00:43]} 18. Rd2 {[%emt 0:03:55]} Rad8 {[%emt 0:02:04]} 19. Nd5 {[%emt 0:03:35]} Qb7 {[%emt 0:01:11]} 20. Rad1 {[%emt 0:01:30]} b5 {[%emt 0:04:08]} 21. h4 {[%emt 0:05:44]} h5 {[%emt 0:04:50]} 22. Bh3 {[%emt 0:11:51]} b4 {[%emt 0:06:18]} 23. Kh2 {[%emt 0:10:33]} Bb5 {[%emt 0:05:32]} 24. g4 {[%emt 0:03:51]} hxg4 {[%emt 0:02:58]} 25. Bxg4 {[%emt 0:00:06]} Bc4 {[%emt 0:04:20]} 26. b3 {[%emt 0:14:03]} Ba6 {[%emt 0:02:46]} 27. c4 {[%emt 0:02:22]} Nd4 {[%emt 0:01:03]} 28. Qd3 {[%emt 0:00:46]} Rxd5 {[%emt 0:03:22]} 29. exd5 {[%emt 0:01:01]} e4 {[%emt 0:00:12]} 30. Qe3 {[%emt 0:07:08]} Qb8+ {[%emt 0:00:07]} 31. Kh1 {[%emt 0:01:30]} exf3 {[%emt 0:00:31]} 32. Qd3 {[%emt 0:01:24]} Qf4 {[%emt 0:00:47]} 33. Rg1 {[%emt 0:01:37]} Bc8 {[%emt 0:00:34]} 0-1

[Event "DVM U14 2021"]
[Site "Willingen"]
[Date "2022.08.16"]
[Round "7"]
[White "Marcziter, Alex"]
[Black "Tran, Anh Duc Kevin"]
[Result "1-0"]
[ECO "C54"]
[WhiteElo "1466"]
[BlackElo "1398"]
[Annotator "NA RC"]
[PlyCount "41"]
[EventDate "2022.08.12"]
[EventType "team-tourn"]
[EventRounds "7"]
[EventCountry "GER"]
[SourceTitle "playchess.com"]
[Source "ChessBase"]
[SourceQuality "1"]
[TimeControl "40/5400+30:1800+30"]

1. e4 {[%emt 0:00:26]} e5 {[%emt 0:00:03]} 2. Nf3 {[%emt 0:00:05]} Nc6 {[%emt 0:00:30]} 3. Bc4 {[%emt 0:00:08]} Bc5 {[%emt 0:00:36]} 4. c3 {[%emt 0:00:10]} Nf6 {[%emt 0:01:12]} 5. d4 {[%emt 0:00:18]} exd4 {[%emt 0:01:28]} 6. b4 {[%emt 0:01:21]} Bb6 {[%emt 0:00:53]} 7. e5 {[%emt 0:00:42]} Ne4 {[%emt 0:04:13]} 8. Bd5 {[%emt 0:03:39]} Nxc3 {[%emt 0:01:07]} 9. Nxc3 {[%emt 0:03:01]} dxc3 {[%emt 0:03:26]} 10. O-O {[%emt 0:01:59]} O-O {[%emt 0:02:46]} 11. Bg5 {[%emt 0:01:25]} Qe8 {[%emt 0:02:48]} 12. Re1 {[%emt 0:00:41]} h6 {[%emt 0:03:45]} 13. Bh4 {[%emt 0:02:16]} Nxb4 {[%emt 0:04:43]} 14. Bb3 {[%emt 0:04:27]} Ba5 {[%emt 0:05:25]} 15. Re3 {[%emt 0:02:23]} Nc6 {[%emt 0:01:44]} 16. Qc2 {[%emt 0:03:05]} b5 {[%emt 0:01:50]} 17. Bf6 {[%emt 0:14:51]} Ne7 {[%emt 0:02:18]} 18. Ng5 {[%emt 0:10:39]} g6 {[%emt 0:00:21]} 19. Bxe7 {[%emt 0:00:52]} Qxe7 {[%emt 1:31:54]} 20. Qxg6+ {[%emt 0:00:02]} Kh8 {[%emt 0:00:02]} 21. Qh7# 1-0